[Event "Titled Tuesday Blitz May 2 Early 2023"]
[White "Bluebaum, Matthias"]
[Black "Duda, Jan-Krzysztof"]
[WhiteFideId "24651516"]
[BlackFideId "1170546"]
[WhiteElo "2638"]
[BlackElo "2790"]
[Result "1/2-1/2"]
[Round "08"]
[TimeControl "180+2"]
[Date "2023.05.02"]
[WhiteClock "0:00:47"]
[BlackClock "0:00:04"]

1. d4 {[%clk 0:03:00]}  Nf6 {[%clk 0:02:59]} 2. c4 {[%clk 0:03:01]}  g6 {[%clk 0:03:00]} 3. Nc3 {[%clk 0:03:01]}  d5 {[%clk 0:03:00]} 4. cxd5 {[%clk 0:03:02]}  Nxd5 {[%clk 0:03:01]} 5. e4 {[%clk 0:03:03]}  Nxc3 {[%clk 0:03:02]} 6. bxc3 {[%clk 0:03:04]}  Bg7 {[%clk 0:03:02]} 7. Nf3 {[%clk 0:03:05]}  c5 {[%clk 0:03:02]} 8. Bb5+ {[%clk 0:03:05]}  Nc6 {[%clk 0:02:57]} 9. O-O {[%clk 0:03:06]}  cxd4 {[%clk 0:02:49]} 10. cxd4 {[%clk 0:03:05]}  O-O {[%clk 0:02:49]} 11. Bxc6 {[%clk 0:03:05]}  bxc6 {[%clk 0:02:50]} 12. Qc2 {[%clk 0:03:06]}  Bg4 {[%clk 0:02:27]} 13. Ne5 {[%clk 0:03:04]}  Qxd4 {[%clk 0:02:23]} 14. Bb2 {[%clk 0:03:04]}  Qb6 {[%clk 0:02:24]} 15. Rab1 {[%clk 0:03:05]}  Bxe5 {[%clk 0:02:20]} 16. Bxe5 {[%clk 0:03:05]}  Qa6 {[%clk 0:02:03]} 17. Rfc1 {[%clk 0:02:46]}  Be6 {[%clk 0:01:59]} 18. Qc5 {[%clk 0:02:40]}  Rfe8 {[%clk 0:01:46]} 19. a3 {[%clk 0:02:19]}  f6 {[%clk 0:01:36]} 20. Bd4 {[%clk 0:02:12]}  Kf7 {[%clk 0:01:35]} 21. f4 {[%clk 0:01:54]}  Red8 {[%clk 0:01:22]} 22. f5 {[%clk 0:01:52]}  gxf5 {[%clk 0:00:55]} 23. exf5 {[%clk 0:01:53]}  Ba2 {[%clk 0:00:29]} 24. Re1 {[%clk 0:01:49]}  Rd7 {[%clk 0:00:24]} 25. Rb2 {[%clk 0:01:46]}  Qd3 {[%clk 0:00:23]} 26. Bxf6 {[%clk 0:01:21]}  exf6 {[%clk 0:00:22]} 27. Rxa2 {[%clk 0:01:22]}  Qd4+ {[%clk 0:00:22]} 28. Qxd4 {[%clk 0:01:22]}  Rxd4 {[%clk 0:00:22]} 29. Rc2 {[%clk 0:01:20]}  Rc8 {[%clk 0:00:22]} 30. Rec1 {[%clk 0:01:18]}  Ra4 {[%clk 0:00:19]} 31. Rc3 {[%clk 0:01:08]}  c5 {[%clk 0:00:18]} 32. Rxc5 {[%clk 0:01:02]}  Rxc5 {[%clk 0:00:17]} 33. Rxc5 {[%clk 0:01:03]}  Rxa3 {[%clk 0:00:18]} 34. Rc7+ {[%clk 0:01:03]}  Kg8 {[%clk 0:00:18]} 35. Kf2 {[%clk 0:01:00]}  h5 {[%clk 0:00:13]} 36. h3 {[%clk 0:00:57]}  a5 {[%clk 0:00:09]} 37. Ra7 {[%clk 0:00:57]}  a4 {[%clk 0:00:09]} 38. h4 {[%clk 0:00:51]}  Kf8 {[%clk 0:00:08]} 39. g3 {[%clk 0:00:44]}  Kg8 {[%clk 0:00:07]} 40. Kg2 {[%clk 0:00:45]}  Kf8 {[%clk 0:00:07]} 41. Kf2 {[%clk 0:00:46]}  Kg8 {[%clk 0:00:07]} 42. Kg2 {[%clk 0:00:46]}  Kf8 {[%clk 0:00:04]} 43. Kf2 {[%clk 0:00:47]} 1/2-1/2


[Site "https://www.chess.com"]

[Event "Titled Tuesday Blitz May 2 Early 2023"]
[White "Nakamura, Hikaru"]
[Black "Chigaev, Maksim"]
[WhiteFideId "2016192"]
[BlackFideId "4108116"]
[WhiteElo "2885"]
[BlackElo "2547"]
[Result "1-0"]
[Round "08"]
[TimeControl "180+2"]
[Date "2023.05.02"]
[WhiteClock "0:00:27"]
[BlackClock "0:00:03"]

1. Nf3 {[%clk 0:03:00]}  Nf6 {[%clk 0:02:59]} 2. e3 {[%clk 0:02:56]}  g6 {[%clk 0:02:59]} 3. b3 {[%clk 0:02:55]}  Bg7 {[%clk 0:02:59]} 4. Bb2 {[%clk 0:02:56]}  O-O {[%clk 0:02:59]} 5. d4 {[%clk 0:02:56]}  c5 {[%clk 0:02:56]} 6. dxc5 {[%clk 0:02:56]}  Qa5+ {[%clk 0:02:55]} 7. c3 {[%clk 0:02:57]}  Qxc5 {[%clk 0:02:56]} 8. Ba3 {[%clk 0:02:57]}  Qb6 {[%clk 0:02:27]} 9. Bxe7 {[%clk 0:02:56]}  Re8 {[%clk 0:02:27]} 10. Bxf6 {[%clk 0:02:55]}  Bxf6 {[%clk 0:02:28]} 11. Be2 {[%clk 0:02:56]}  d5 {[%clk 0:02:28]} 12. O-O {[%clk 0:02:55]}  Nc6 {[%clk 0:02:29]} 13. Nd4 {[%clk 0:02:55]}  h5 {[%clk 0:02:26]} 14. Nd2 {[%clk 0:02:55]}  Bd7 {[%clk 0:02:23]} 15. N2f3 {[%clk 0:02:54]}  Rad8 {[%clk 0:02:24]} 16. Qd2 {[%clk 0:02:54]}  Kg7 {[%clk 0:02:22]} 17. Rfd1 {[%clk 0:02:54]}  a6 {[%clk 0:02:22]} 18. Rac1 {[%clk 0:02:54]}  Bc8 {[%clk 0:02:22]} 19. Ne1 {[%clk 0:02:51]}  Ne5 {[%clk 0:02:19]} 20. Nd3 {[%clk 0:02:51]}  Ng4 {[%clk 0:02:19]} 21. Nf4 {[%clk 0:02:43]}  Be5 {[%clk 0:02:19]} 22. h3 {[%clk 0:02:35]}  Nf6 {[%clk 0:02:19]} 23. Nd3 {[%clk 0:02:30]}  Ne4 {[%clk 0:02:16]} 24. Qe1 {[%clk 0:02:30]}  Bf6 {[%clk 0:02:17]} 25. Bf1 {[%clk 0:02:25]}  g5 {[%clk 0:02:07]} 26. Ne2 {[%clk 0:02:06]}  Bf5 {[%clk 0:01:52]} 27. g3 {[%clk 0:01:59]}  Qe6 {[%clk 0:01:29]} 28. Kh2 {[%clk 0:01:58]}  Bg6 {[%clk 0:01:20]} 29. Bg2 {[%clk 0:01:57]}  b5 {[%clk 0:01:10]} 30. Nb4 {[%clk 0:01:55]}  a5 {[%clk 0:01:06]} 31. Nc2 {[%clk 0:01:55]}  h4 {[%clk 0:01:04]} 32. g4 {[%clk 0:01:50]}  Nxc3 {[%clk 0:01:00]} 33. Nxc3 {[%clk 0:01:03]}  Qe5+ {[%clk 0:00:56]} 34. Kg1 {[%clk 0:01:02]}  Qxc3 {[%clk 0:00:56]} 35. Qxc3 {[%clk 0:00:56]}  Bxc3 {[%clk 0:00:57]} 36. Nd4 {[%clk 0:00:57]}  b4 {[%clk 0:00:52]} 37. Nb5 {[%clk 0:00:57]}  d4 {[%clk 0:00:23]} 38. exd4 {[%clk 0:00:58]}  Re2 {[%clk 0:00:16]} 39. Nxc3 {[%clk 0:00:56]}  bxc3 {[%clk 0:00:17]} 40. Rxc3 {[%clk 0:00:57]}  Rxa2 {[%clk 0:00:17]} 41. Rc5 {[%clk 0:00:56]}  Kh6 {[%clk 0:00:13]} 42. d5 {[%clk 0:00:56]}  Ra3 {[%clk 0:00:10]} 43. d6 {[%clk 0:00:46]}  Rxb3 {[%clk 0:00:09]} 44. d7 {[%clk 0:00:44]}  Rb1 {[%clk 0:00:08]} 45. Rxb1 {[%clk 0:00:44]}  Bxb1 {[%clk 0:00:08]} 46. Bc6 {[%clk 0:00:44]}  Ba2 {[%clk 0:00:05]} 47. Rxa5 {[%clk 0:00:38]}  Be6 {[%clk 0:00:06]} 48. Ba4 {[%clk 0:00:33]}  Kg6 {[%clk 0:00:05]} 49. f3 {[%clk 0:00:29]}  Kf6 {[%clk 0:00:05]} 50. Kf2 {[%clk 0:00:29]}  Bxd7 {[%clk 0:00:03]} 51. Rd5 {[%clk 0:00:27]}  Ke6 {[%clk 0:00:02]} 52. Bb3 {[%clk 0:00:28]}  Kf6 {[%clk 0:00:02]} 53. Bd1 {[%clk 0:00:25]}  Kg6 {[%clk 0:00:01]} 54. Be2 {[%clk 0:00:23]}  Kf6 {[%clk 0:00:02]} 55. Bd3 {[%clk 0:00:22]}  Ke7 {[%clk 0:00:02]} 56. Rxg5 {[%clk 0:00:15]}  Bxg4 {[%clk 0:00:02]} 57. hxg4 {[%clk 0:00:15]}  Rxd3 {[%clk 0:00:02]} 58. Rh5 {[%clk 0:00:16]}  Rd2+ {[%clk 0:00:03]} 59. Ke3 {[%clk 0:00:15]}  Rh2 {[%clk 0:00:03]} 60. Rh6 {[%clk 0:00:15]}  Rh1 {[%clk 0:00:03]} 61. Kf4 {[%clk 0:00:16]}  Kf8 {[%clk 0:00:03]} 62. Kg5 {[%clk 0:00:16]}  Kg7 {[%clk 0:00:03]} 63. Rxh4 {[%clk 0:00:16]}  Ra1 {[%clk 0:00:03]} 64. Kf4 {[%clk 0:00:16]}  Ra4+ {[%clk 0:00:03]} 65. Kg3 {[%clk 0:00:16]}  Rb4 {[%clk 0:00:04]} 66. Rh5 {[%clk 0:00:16]}  Ra4 {[%clk 0:00:05]} 67. Rc5 {[%clk 0:00:16]}  Rb4 {[%clk 0:00:05]} 68. Rf5 {[%clk 0:00:17]}  Ra4 {[%clk 0:00:06]} 69. Kh4 {[%clk 0:00:17]}  Rb4 {[%clk 0:00:05]} 70. Kg5 {[%clk 0:00:18]}  Rb6 {[%clk 0:00:05]} 71. Rc5 {[%clk 0:00:19]}  Rg6+ {[%clk 0:00:05]} 72. Kf4 {[%clk 0:00:19]}  Ra6 {[%clk 0:00:06]} 73. Kg3 {[%clk 0:00:20]}  Ra4 {[%clk 0:00:06]} 74. f4 {[%clk 0:00:20]}  Ra3+ {[%clk 0:00:07]} 75. Kh4 {[%clk 0:00:21]}  Rd3 {[%clk 0:00:05]} 76. Kg5 {[%clk 0:00:21]}  Rd6 {[%clk 0:00:05]} 77. f5 {[%clk 0:00:21]}  Ra6 {[%clk 0:00:03]} 78. Rc7 {[%clk 0:00:21]}  Rb6 {[%clk 0:00:04]} 79. Kh5 {[%clk 0:00:22]}  Rh6+ {[%clk 0:00:04]} 80. Kg5 {[%clk 0:00:23]}  Rb6 {[%clk 0:00:04]} 81. Rc4 {[%clk 0:00:23]}  Ra6 {[%clk 0:00:05]} 82. Kf4 {[%clk 0:00:24]}  f6 {[%clk 0:00:05]} 83. Kg3 {[%clk 0:00:23]}  Kh6 {[%clk 0:00:05]} 84. Kh4 {[%clk 0:00:22]}  Ra1 {[%clk 0:00:05]} 85. Rc8 {[%clk 0:00:23]}  Rh1+ {[%clk 0:00:05]} 86. Kg3 {[%clk 0:00:24]}  Rg1+ {[%clk 0:00:06]} 87. Kf3 {[%clk 0:00:24]}  Rf1+ {[%clk 0:00:06]} 88. Kg2 {[%clk 0:00:25]}  Ra1 {[%clk 0:00:06]} 89. Rg8 {[%clk 0:00:25]}  Ra4 {[%clk 0:00:03]} 90. Rg6+ {[%clk 0:00:25]}  Kh7 {[%clk 0:00:04]} 91. Kg3 {[%clk 0:00:26]}  Ra6 {[%clk 0:00:03]} 92. Kh4 {[%clk 0:00:26]}  Rb6 {[%clk 0:00:04]} 93. Kh5 {[%clk 0:00:27]}  Ra6 {[%clk 0:00:03]} 94. g5 {[%clk 0:00:27]} 1-0


[Site "https://www.chess.com"]

[Event "Titled Tuesday Blitz May 2 Early 2023"]
[White "Bortnyk, Olexandr"]
[Black "Durarbayli, Vasif"]
[WhiteFideId "14120828"]
[BlackFideId "13402935"]
[WhiteElo "2734"]
[BlackElo "2551"]
[Result "1-0"]
[Round "08"]
[TimeControl "180+2"]
[Date "2023.05.02"]
[WhiteClock "0:00:23"]
[BlackClock "0:00:07"]

1. d4 {[%clk 0:03:00]}  d5 {[%clk 0:03:00]} 2. Nc3 {[%clk 0:03:00]}  Bf5 {[%clk 0:02:59]} 3. f3 {[%clk 0:02:59]}  e6 {[%clk 0:02:57]} 4. e4 {[%clk 0:02:50]}  Bg6 {[%clk 0:02:58]} 5. h4 {[%clk 0:02:50]}  h6 {[%clk 0:02:58]} 6. Bd3 {[%clk 0:02:37]}  Nf6 {[%clk 0:02:23]} 7. Be3 {[%clk 0:02:23]}  Bb4 {[%clk 0:02:16]} 8. e5 {[%clk 0:02:21]}  Bxc3+ {[%clk 0:02:00]} 9. bxc3 {[%clk 0:02:20]}  Nfd7 {[%clk 0:02:01]} 10. Bxg6 {[%clk 0:02:17]}  fxg6 {[%clk 0:02:02]} 11. Qd3 {[%clk 0:02:17]}  Kf7 {[%clk 0:01:55]} 12. Ne2 {[%clk 0:02:07]}  Re8 {[%clk 0:01:54]} 13. h5 {[%clk 0:02:05]}  Nf8 {[%clk 0:01:50]} 14. hxg6+ {[%clk 0:01:41]}  Nxg6 {[%clk 0:01:50]} 15. g4 {[%clk 0:01:40]}  c5 {[%clk 0:01:39]} 16. f4 {[%clk 0:01:23]}  c4 {[%clk 0:01:37]} 17. Qd2 {[%clk 0:01:20]}  Ne7 {[%clk 0:01:10]} 18. Ng3 {[%clk 0:01:13]}  Nbc6 {[%clk 0:01:00]} 19. f5 {[%clk 0:01:14]}  Ng8 {[%clk 0:00:47]} 20. Nh5 {[%clk 0:01:08]}  g6 {[%clk 0:00:30]} 21. fxg6+ {[%clk 0:01:04]}  Kxg6 {[%clk 0:00:31]} 22. Nf6 {[%clk 0:01:05]}  Kf7 {[%clk 0:00:28]} 23. Nxe8 {[%clk 0:00:47]}  Kxe8 {[%clk 0:00:29]} 24. Bxh6 {[%clk 0:00:47]}  Kd7 {[%clk 0:00:29]} 25. Bg5 {[%clk 0:00:46]}  Qe8 {[%clk 0:00:26]} 26. Rh7+ {[%clk 0:00:46]}  Kc8 {[%clk 0:00:27]} 27. O-O-O {[%clk 0:00:44]}  Qg6 {[%clk 0:00:19]} 28. Rdh1 {[%clk 0:00:43]}  a5 {[%clk 0:00:15]} 29. Qf4 {[%clk 0:00:27]}  Kb8 {[%clk 0:00:07]} 30. Qf8+ {[%clk 0:00:22]}  Ka7 {[%clk 0:00:07]} 31. Qg7 {[%clk 0:00:23]} 1-0


[Site "https://www.chess.com"]

[Event "Titled Tuesday Blitz May 2 Early 2023"]
[White "Asis Gargatagli, Hipolito"]
[Black "Le, Tuan Minh"]
[WhiteFideId "2260735"]
[BlackFideId "12401153"]
[WhiteElo "2557"]
[BlackElo "2566"]
[Result "0-1"]
[Round "08"]
[TimeControl "180+2"]
[Date "2023.05.02"]
[WhiteClock "0:00:03"]
[BlackClock "0:00:04"]

1. e4 {[%clk 0:03:00]}  c5 {[%clk 0:02:59]} 2. Nf3 {[%clk 0:03:01]}  Nf6 {[%clk 0:03:00]} 3. Nc3 {[%clk 0:03:02]}  d5 {[%clk 0:03:00]} 4. Bb5+ {[%clk 0:03:01]}  Bd7 {[%clk 0:03:00]} 5. e5 {[%clk 0:03:01]}  Bxb5 {[%clk 0:02:59]} 6. Nxb5 {[%clk 0:03:01]}  Qd7 {[%clk 0:02:59]} 7. a4 {[%clk 0:02:56]}  Ng8 {[%clk 0:02:56]} 8. O-O {[%clk 0:02:54]}  e6 {[%clk 0:02:56]} 9. d4 {[%clk 0:02:52]}  a6 {[%clk 0:02:56]} 10. Nc3 {[%clk 0:02:51]}  Nc6 {[%clk 0:02:54]} 11. Ne2 {[%clk 0:02:51]}  cxd4 {[%clk 0:02:54]} 12. Nexd4 {[%clk 0:02:51]}  Nge7 {[%clk 0:02:53]} 13. c3 {[%clk 0:02:50]}  Ng6 {[%clk 0:02:47]} 14. Re1 {[%clk 0:02:50]}  Be7 {[%clk 0:02:45]} 15. g3 {[%clk 0:02:43]}  Qc7 {[%clk 0:02:33]} 16. Qe2 {[%clk 0:02:38]}  h6 {[%clk 0:02:15]} 17. h4 {[%clk 0:02:37]}  Nf8 {[%clk 0:02:10]} 18. h5 {[%clk 0:02:35]}  Nd7 {[%clk 0:02:10]} 19. Bf4 {[%clk 0:02:32]}  O-O {[%clk 0:02:00]} 20. Kg2 {[%clk 0:02:08]}  Rac8 {[%clk 0:01:57]} 21. Qe3 {[%clk 0:01:43]}  Nxd4 {[%clk 0:01:35]} 22. Nxd4 {[%clk 0:01:43]}  Rfe8 {[%clk 0:01:25]} 23. g4 {[%clk 0:01:41]}  Qd8 {[%clk 0:01:18]} 24. Bg3 {[%clk 0:01:37]}  Bc5 {[%clk 0:01:10]} 25. Kh3 {[%clk 0:01:26]}  f6 {[%clk 0:00:59]} 26. exf6 {[%clk 0:01:21]}  Qxf6 {[%clk 0:01:00]} 27. f4 {[%clk 0:01:18]}  Bxd4 {[%clk 0:00:57]} 28. cxd4 {[%clk 0:01:17]}  Rc4 {[%clk 0:00:57]} 29. f5 {[%clk 0:01:05]}  Nf8 {[%clk 0:00:19]} 30. b3 {[%clk 0:00:57]}  Rc6 {[%clk 0:00:17]} 31. Rf1 {[%clk 0:00:49]}  Nh7 {[%clk 0:00:16]} 32. Bh4 {[%clk 0:00:40]}  Qf7 {[%clk 0:00:14]} 33. f6 {[%clk 0:00:39]}  gxf6 {[%clk 0:00:10]} 34. Qxh6 {[%clk 0:00:38]}  Rc3+ {[%clk 0:00:11]} 35. Kg2 {[%clk 0:00:32]}  Qg7 {[%clk 0:00:11]} 36. Qxg7+ {[%clk 0:00:31]}  Kxg7 {[%clk 0:00:12]} 37. Rf3 {[%clk 0:00:28]}  Rxf3 {[%clk 0:00:10]} 38. Kxf3 {[%clk 0:00:28]}  Rc8 {[%clk 0:00:11]} 39. Re1 {[%clk 0:00:25]}  Kf7 {[%clk 0:00:11]} 40. Re3 {[%clk 0:00:22]}  Rc1 {[%clk 0:00:12]} 41. Kf4 {[%clk 0:00:18]}  b5 {[%clk 0:00:10]} 42. axb5 {[%clk 0:00:18]}  axb5 {[%clk 0:00:10]} 43. Rf3 {[%clk 0:00:19]}  Rd1 {[%clk 0:00:08]} 44. Ke3 {[%clk 0:00:18]}  Rb1 {[%clk 0:00:08]} 45. Kd2 {[%clk 0:00:17]}  Kg7 {[%clk 0:00:07]} 46. Re3 {[%clk 0:00:16]}  b4 {[%clk 0:00:07]} 47. Rxe6 {[%clk 0:00:16]}  Rxb3 {[%clk 0:00:05]} 48. Re7+ {[%clk 0:00:16]}  Kg8 {[%clk 0:00:06]} 49. h6 {[%clk 0:00:13]}  Rh3 {[%clk 0:00:06]} 50. Rg7+ {[%clk 0:00:07]}  Kh8 {[%clk 0:00:06]} 51. Rb7 {[%clk 0:00:08]}  Kg8 {[%clk 0:00:06]} 52. Rg7+ {[%clk 0:00:07]}  Kf8 {[%clk 0:00:05]} 53. Rb7 {[%clk 0:00:08]}  Rxh4 {[%clk 0:00:05]} 54. Rxh7 {[%clk 0:00:08]}  Rxg4 {[%clk 0:00:04]} 55. Kd3 {[%clk 0:00:09]}  Rg3+ {[%clk 0:00:04]} 56. Kc2 {[%clk 0:00:08]}  Rh3 {[%clk 0:00:04]} 57. Rb7 {[%clk 0:00:08]}  b3+ {[%clk 0:00:04]} 58. Kd2 {[%clk 0:00:05]}  b2 {[%clk 0:00:04]} 59. h7 {[%clk 0:00:04]}  Rxh7 {[%clk 0:00:03]} 60. Rb8+ {[%clk 0:00:03]}  Kg7 {[%clk 0:00:04]} 0-1


[Site "https://www.chess.com"]

[Event "Titled Tuesday Blitz May 2 Early 2023"]
[White "Maghsoodloo, Parham"]
[Black "Livaic, Leon"]
[WhiteFideId "12539929"]
[BlackFideId "14531534"]
[WhiteElo "2647"]
[BlackElo "2509"]
[Result "1-0"]
[Round "08"]
[TimeControl "180+2"]
[Date "2023.05.02"]
[WhiteClock "0:00:21"]
[BlackClock "0:01:05"]

1. d4 {[%clk 0:03:00]}  Nf6 {[%clk 0:02:59]} 2. c4 {[%clk 0:03:01]}  e6 {[%clk 0:03:00]} 3. Nf3 {[%clk 0:03:01]}  d5 {[%clk 0:03:00]} 4. Bg5 {[%clk 0:03:02]}  Bb4+ {[%clk 0:02:59]} 5. Nc3 {[%clk 0:03:01]}  dxc4 {[%clk 0:02:59]} 6. Qa4+ {[%clk 0:02:58]}  Nc6 {[%clk 0:02:58]} 7. e3 {[%clk 0:02:58]}  Qd5 {[%clk 0:02:48]} 8. Bxf6 {[%clk 0:02:41]}  gxf6 {[%clk 0:02:49]} 9. Qc2 {[%clk 0:02:10]}  b5 {[%clk 0:02:47]} 10. a4 {[%clk 0:01:58]}  Bxc3+ {[%clk 0:02:09]} 11. Qxc3 {[%clk 0:01:43]}  Rb8 {[%clk 0:02:02]} 12. Nd2 {[%clk 0:01:35]}  a6 {[%clk 0:02:00]} 13. axb5 {[%clk 0:01:29]}  axb5 {[%clk 0:02:00]} 14. Be2 {[%clk 0:01:29]}  f5 {[%clk 0:01:44]} 15. b3 {[%clk 0:01:24]}  cxb3 {[%clk 0:01:31]} 16. Bf3 {[%clk 0:01:19]}  b4 {[%clk 0:01:25]} 17. Qxc6+ {[%clk 0:01:17]}  Qxc6 {[%clk 0:01:25]} 18. Bxc6+ {[%clk 0:01:17]}  Ke7 {[%clk 0:01:26]} 19. Nxb3 {[%clk 0:01:17]}  Rb6 {[%clk 0:01:26]} 20. Bf3 {[%clk 0:01:12]}  Ba6 {[%clk 0:01:26]} 21. Rc1 {[%clk 0:01:00]}  Rc8 {[%clk 0:01:25]} 22. Be2 {[%clk 0:00:57]}  Bb7 {[%clk 0:01:25]} 23. O-O {[%clk 0:00:58]}  f6 {[%clk 0:01:19]} 24. Bf3 {[%clk 0:00:56]}  e5 {[%clk 0:01:15]} 25. Bxb7 {[%clk 0:00:56]}  Rxb7 {[%clk 0:01:15]} 26. Rc6 {[%clk 0:00:55]}  Ra8 {[%clk 0:01:13]} 27. Rb1 {[%clk 0:00:54]}  Ra3 {[%clk 0:01:14]} 28. g3 {[%clk 0:00:54]}  exd4 {[%clk 0:01:12]} 29. Nxd4 {[%clk 0:00:53]}  b3 {[%clk 0:01:11]} 30. Rc3 {[%clk 0:00:52]}  c5 {[%clk 0:01:11]} 31. Rcxb3 {[%clk 0:00:35]}  Rbxb3 {[%clk 0:01:11]} 32. Nxb3 {[%clk 0:00:36]}  Kd6 {[%clk 0:01:10]} 33. Kf1 {[%clk 0:00:31]}  c4 {[%clk 0:01:10]} 34. Nd4 {[%clk 0:00:31]}  Kd5 {[%clk 0:01:06]} 35. Rd1 {[%clk 0:00:26]}  Ke4 {[%clk 0:01:05]} 36. Nb5 {[%clk 0:00:25]}  Rb3 {[%clk 0:01:04]} 37. Nd6+ {[%clk 0:00:25]}  Kf3 {[%clk 0:01:05]} 38. Nxc4 {[%clk 0:00:25]}  h5 {[%clk 0:01:04]} 39. h4 {[%clk 0:00:24]}  Kg4 {[%clk 0:01:03]} 40. Rd4+ {[%clk 0:00:22]}  Kh3 {[%clk 0:01:03]} 41. Nd2 {[%clk 0:00:21]}  Rb2 {[%clk 0:01:03]} 42. Ke2 {[%clk 0:00:22]}  Kg2 {[%clk 0:01:03]} 43. Rf4 {[%clk 0:00:22]}  Rb5 {[%clk 0:01:04]} 44. e4 {[%clk 0:00:22]}  fxe4 {[%clk 0:01:04]} 45. Rxf6 {[%clk 0:00:22]}  Rb4 {[%clk 0:01:03]} 46. Rf4 {[%clk 0:00:22]}  Rb2 {[%clk 0:01:02]} 47. Rxe4 {[%clk 0:00:22]}  Rb5 {[%clk 0:01:03]} 48. Rf4 {[%clk 0:00:22]}  Re5+ {[%clk 0:01:03]} 49. Ne4 {[%clk 0:00:22]}  Re8 {[%clk 0:01:03]} 50. Ke3 {[%clk 0:00:21]}  Re7 {[%clk 0:01:04]} 51. Rf5 {[%clk 0:00:21]}  Rh7 {[%clk 0:01:04]} 52. Kf4 {[%clk 0:00:20]}  Rh8 {[%clk 0:01:03]} 53. Kg5 {[%clk 0:00:20]}  Re8 {[%clk 0:01:03]} 54. Nf6 {[%clk 0:00:20]}  Rh8 {[%clk 0:01:03]} 55. Nxh5 {[%clk 0:00:20]}  Kh3 {[%clk 0:01:04]} 56. Nf4+ {[%clk 0:00:20]}  Kh2 {[%clk 0:01:05]} 57. Ng6 {[%clk 0:00:21]}  Kh3 {[%clk 0:01:05]} 58. Nxh8 {[%clk 0:00:21]} 1-0


[Site "https://www.chess.com"]

[Event "Titled Tuesday Blitz May 2 Early 2023"]
[White "Nagy, Gabor"]
[Black "Van Foreest, Jorden"]
[WhiteFideId "737119"]
[BlackFideId "1039784"]
[WhiteElo "2514"]
[BlackElo "2633"]
[Result "1/2-1/2"]
[Round "08"]
[TimeControl "180+2"]
[Date "2023.05.02"]
[WhiteClock "0:00:10"]
[BlackClock "0:00:20"]

1. Nf3 {[%clk 0:03:00]}  Nf6 {[%clk 0:02:58]} 2. g3 {[%clk 0:03:01]}  d5 {[%clk 0:02:57]} 3. Bg2 {[%clk 0:03:01]}  g6 {[%clk 0:02:56]} 4. O-O {[%clk 0:03:02]}  Bg7 {[%clk 0:02:56]} 5. b3 {[%clk 0:03:01]}  O-O {[%clk 0:02:55]} 6. Bb2 {[%clk 0:03:01]}  c6 {[%clk 0:02:54]} 7. c4 {[%clk 0:03:00]}  Re8 {[%clk 0:02:55]} 8. d3 {[%clk 0:02:59]}  Nbd7 {[%clk 0:02:53]} 9. Nbd2 {[%clk 0:02:51]}  e5 {[%clk 0:02:52]} 10. e4 {[%clk 0:02:51]}  dxe4 {[%clk 0:02:49]} 11. dxe4 {[%clk 0:02:52]}  a5 {[%clk 0:02:45]} 12. Qc2 {[%clk 0:02:45]}  Qe7 {[%clk 0:02:35]} 13. Rfd1 {[%clk 0:02:41]}  a4 {[%clk 0:02:33]} 14. Bc3 {[%clk 0:02:34]}  c5 {[%clk 0:02:16]} 15. Nf1 {[%clk 0:02:29]}  b6 {[%clk 0:02:15]} 16. Ne3 {[%clk 0:02:28]}  Bb7 {[%clk 0:02:15]} 17. Nd2 {[%clk 0:02:24]}  Nf8 {[%clk 0:02:13]} 18. Nd5 {[%clk 0:02:20]}  Qd8 {[%clk 0:02:12]} 19. Nf1 {[%clk 0:02:11]}  N6d7 {[%clk 0:02:07]} 20. Nfe3 {[%clk 0:02:08]}  Bc6 {[%clk 0:02:01]} 21. b4 {[%clk 0:01:57]}  cxb4 {[%clk 0:01:49]} 22. Bxb4 {[%clk 0:01:58]}  Ne6 {[%clk 0:01:48]} 23. Rab1 {[%clk 0:01:49]}  Nd4 {[%clk 0:01:48]} 24. Qb2 {[%clk 0:01:45]}  Bf8 {[%clk 0:01:43]} 25. Bxf8 {[%clk 0:01:41]}  Rxf8 {[%clk 0:01:44]} 26. a3 {[%clk 0:01:33]}  Rb8 {[%clk 0:01:41]} 27. h4 {[%clk 0:01:27]}  Nc5 {[%clk 0:01:39]} 28. h5 {[%clk 0:01:24]}  Qg5 {[%clk 0:01:37]} 29. hxg6 {[%clk 0:01:22]}  hxg6 {[%clk 0:01:37]} 30. Rd2 {[%clk 0:01:06]}  Ncb3 {[%clk 0:01:37]} 31. Rd3 {[%clk 0:01:05]}  Kg7 {[%clk 0:01:37]} 32. f4 {[%clk 0:01:03]}  Qh5 {[%clk 0:01:33]} 33. fxe5 {[%clk 0:01:00]}  Qxe5 {[%clk 0:01:26]} 34. Nc2 {[%clk 0:00:49]}  Ne2+ {[%clk 0:01:15]} 35. Kf2 {[%clk 0:00:47]}  Qxb2 {[%clk 0:01:13]} 36. Rxb2 {[%clk 0:00:48]}  b5 {[%clk 0:00:57]} 37. Kxe2 {[%clk 0:00:44]}  Nc1+ {[%clk 0:00:57]} 38. Kd2 {[%clk 0:00:44]}  Nxd3 {[%clk 0:00:58]} 39. Kxd3 {[%clk 0:00:44]}  bxc4+ {[%clk 0:00:58]} 40. Kc3 {[%clk 0:00:44]}  Rb3+ {[%clk 0:00:59]} 41. Rxb3 {[%clk 0:00:42]}  cxb3 {[%clk 0:01:00]} 42. Nd4 {[%clk 0:00:37]}  Bd7 {[%clk 0:00:57]} 43. Bf1 {[%clk 0:00:36]}  Rc8+ {[%clk 0:00:57]} 44. Kb2 {[%clk 0:00:37]}  Rh8 {[%clk 0:00:57]} 45. Nb6 {[%clk 0:00:35]}  Rh2+ {[%clk 0:00:57]} 46. Kc3 {[%clk 0:00:35]}  Be8 {[%clk 0:00:52]} 47. Bd3 {[%clk 0:00:34]}  Ra2 {[%clk 0:00:49]} 48. Kb4 {[%clk 0:00:27]}  Rg2 {[%clk 0:00:39]} 49. Nxa4 {[%clk 0:00:23]}  Bxa4 {[%clk 0:00:38]} 50. Kxa4 {[%clk 0:00:23]}  Rd2 {[%clk 0:00:38]} 51. Nxb3 {[%clk 0:00:19]}  Rxd3 {[%clk 0:00:38]} 52. Kb4 {[%clk 0:00:19]}  Rxg3 {[%clk 0:00:38]} 53. a4 {[%clk 0:00:19]}  Re3 {[%clk 0:00:38]} 54. Nc5 {[%clk 0:00:20]}  Re1 {[%clk 0:00:37]} 55. a5 {[%clk 0:00:20]}  Rb1+ {[%clk 0:00:38]} 56. Kc4 {[%clk 0:00:21]}  g5 {[%clk 0:00:37]} 57. a6 {[%clk 0:00:21]}  g4 {[%clk 0:00:37]} 58. Nb3 {[%clk 0:00:19]}  Rb2 {[%clk 0:00:29]} 59. Nd4 {[%clk 0:00:17]}  Ra2 {[%clk 0:00:28]} 60. Kb5 {[%clk 0:00:17]}  g3 {[%clk 0:00:28]} 61. Nf5+ {[%clk 0:00:17]}  Kf6 {[%clk 0:00:27]} 62. Nxg3 {[%clk 0:00:18]}  Ke5 {[%clk 0:00:28]} 63. Kb6 {[%clk 0:00:17]}  Kd6 {[%clk 0:00:23]} 64. Nf5+ {[%clk 0:00:16]}  Kd7 {[%clk 0:00:24]} 65. Nd4 {[%clk 0:00:15]}  Ra4 {[%clk 0:00:19]} 66. Nb5 {[%clk 0:00:13]}  Rxe4 {[%clk 0:00:19]} 67. a7 {[%clk 0:00:13]}  Ra4 {[%clk 0:00:17]} 68. Kb7 {[%clk 0:00:13]}  f5 {[%clk 0:00:17]} 69. a8=Q {[%clk 0:00:08]}  Rxa8 {[%clk 0:00:17]} 70. Kxa8 {[%clk 0:00:09]}  f4 {[%clk 0:00:17]} 71. Nd4 {[%clk 0:00:09]}  Kd6 {[%clk 0:00:17]} 72. Kb7 {[%clk 0:00:09]}  Kd5 {[%clk 0:00:18]} 73. Nf3 {[%clk 0:00:09]}  Ke4 {[%clk 0:00:19]} 74. Nh4 {[%clk 0:00:10]}  f3 {[%clk 0:00:20]} 75. Nxf3 {[%clk 0:00:10]} 1/2-1/2


[Site "https://www.chess.com"]